[Event "January 2 Late 2024"]
[Site "https://www.chess.com"]
[Date "2024.01.02"]
[Round "2"]
[White "Khodabandeh, Milad"]
[Black "Shapiro, Viktor"]
[Result "1-0"]
[Board "157"]
[TimeControl "180+1"]
[WhiteFideId "12538620"]
[BlackFideId "4175700"]
[WhiteElo "2357"]
[BlackElo "2517"]
[WhiteTeam "IRI"]
[BlackTeam "RUS"]
[WhiteClock "0:00:30"]
[BlackClock "0:00:48"]

1. e4 {[%clk 0:03:00]}  Nf6 {[%clk 0:03:00]} 2. e5 {[%clk 0:03:01]}  Nd5 {[%clk 0:03:00]} 3. d4 {[%clk 0:03:01]}  d6 {[%clk 0:03:00]} 4. c4 {[%clk 0:03:01]}  Nb6 {[%clk 0:03:00]} 5. f4 {[%clk 0:03:02]}  dxe5 {[%clk 0:03:00]} 6. fxe5 {[%clk 0:03:03]}  c5 {[%clk 0:03:01]} 7. d5 {[%clk 0:03:03]}  g6 {[%clk 0:03:01]} 8. Nc3 {[%clk 0:03:03]}  Bg7 {[%clk 0:03:01]} 9. Bf4 {[%clk 0:03:02]}  O-O {[%clk 0:03:00]} 10. Nf3 {[%clk 0:02:57]}  Bg4 {[%clk 0:03:00]} 11. h3 {[%clk 0:02:57]}  Bxf3 {[%clk 0:03:00]} 12. Qxf3 {[%clk 0:02:57]}  e6 {[%clk 0:03:01]} 13. Rd1 {[%clk 0:02:53]}  exd5 {[%clk 0:02:56]} 14. cxd5 {[%clk 0:02:53]}  N8d7 {[%clk 0:02:50]} 15. Qg3 {[%clk 0:02:31]}  Bxe5 {[%clk 0:02:37]} 16. Bb5 {[%clk 0:02:22]}  Bxf4 {[%clk 0:02:32]} 17. Qxf4 {[%clk 0:02:22]}  Re8+ {[%clk 0:02:28]} 18. Kf2 {[%clk 0:02:19]}  a6 {[%clk 0:02:27]} 19. Bxd7 {[%clk 0:02:14]}  Nxd7 {[%clk 0:02:25]} 20. d6 {[%clk 0:02:03]}  Qf6 {[%clk 0:02:22]} 21. Kg3 {[%clk 0:01:55]}  Qxf4+ {[%clk 0:02:08]} 22. Kxf4 {[%clk 0:01:56]}  Nf6 {[%clk 0:02:05]} 23. Rhe1 {[%clk 0:01:39]}  Rxe1 {[%clk 0:01:41]} 24. Rxe1 {[%clk 0:01:40]}  Rd8 {[%clk 0:01:41]} 25. Rd1 {[%clk 0:01:04]}  b5 {[%clk 0:01:31]} 26. Ne4 {[%clk 0:00:57]}  Nxe4 {[%clk 0:01:25]} 27. Kxe4 {[%clk 0:00:58]}  c4 {[%clk 0:01:13]} 28. Kd5 {[%clk 0:00:51]}  Kf8 {[%clk 0:01:08]} 29. Kc6 {[%clk 0:00:47]}  b4 {[%clk 0:01:04]} 30. d7 {[%clk 0:00:43]}  c3 {[%clk 0:00:55]} 31. bxc3 {[%clk 0:00:43]}  bxc3 {[%clk 0:00:55]} 32. Kc7 {[%clk 0:00:37]}  c2 {[%clk 0:00:54]} 33. Re1 {[%clk 0:00:30]}  Ra8 {[%clk 0:00:50]} 34. d8=Q+ {[%clk 0:00:29]}  Rxd8 {[%clk 0:00:48]} 35. Kxd8 {[%clk 0:00:30]} 1-0

[Event "January 2 Late 2024"]
[Site "https://www.chess.com"]
[Date "2024.01.02"]
[Round "2"]
[White "Korpics, Zsolt"]
[Black "Kleibel, Uwe"]
[Result "1-0"]
[Board "158"]
[TimeControl "180+1"]
[WhiteFideId "705241"]
[BlackFideId "1270982"]
[WhiteElo "2517"]
[BlackElo "2354"]
[WhiteTeam "HUN"]
[BlackTeam "GER"]
[WhiteClock "0:01:51"]
[BlackClock "0:02:20"]

1. e4 {[%clk 0:03:00]}  e5 {[%clk 0:03:00]} 2. Nf3 {[%clk 0:03:00]}  Nc6 {[%clk 0:03:00]} 3. Bb5 {[%clk 0:03:01]}  a6 {[%clk 0:03:00]} 4. Ba4 {[%clk 0:03:01]}  Nf6 {[%clk 0:03:00]} 5. O-O {[%clk 0:03:01]}  Be7 {[%clk 0:03:01]} 6. Re1 {[%clk 0:03:01]}  b5 {[%clk 0:03:01]} 7. Bb3 {[%clk 0:03:00]}  d6 {[%clk 0:03:02]} 8. c3 {[%clk 0:02:58]}  O-O {[%clk 0:03:02]} 9. h3 {[%clk 0:02:57]}  Nb8 {[%clk 0:03:02]} 10. d4 {[%clk 0:02:56]}  Nbd7 {[%clk 0:03:02]} 11. Nbd2 {[%clk 0:02:56]}  c5 {[%clk 0:03:02]} 12. Nf1 {[%clk 0:02:55]}  cxd4 {[%clk 0:03:00]} 13. cxd4 {[%clk 0:02:54]}  exd4 {[%clk 0:03:00]} 14. Nxd4 {[%clk 0:02:53]}  Bb7 {[%clk 0:03:01]} 15. Ng3 {[%clk 0:02:52]}  Re8 {[%clk 0:03:00]} 16. Ndf5 {[%clk 0:02:36]}  Nc5 {[%clk 0:03:00]} 17. Nxe7+ {[%clk 0:01:56]}  Qxe7 {[%clk 0:03:00]} 18. Nf5 {[%clk 0:01:56]}  Qe5 {[%clk 0:02:55]} 19. f4 {[%clk 0:01:53]}  Qxf5 {[%clk 0:02:25]} 20. exf5 {[%clk 0:01:53]}  Nxb3 {[%clk 0:02:20]} 21. axb3 {[%clk 0:01:51]} 1-0

[Event "January 2 Late 2024"]
[Site "https://www.chess.com"]
[Date "2024.01.02"]
[Round "2"]
[White "Osmak, Yuliia"]
[Black "Melamed, Daniel"]
[Result "1-0"]
[Board "161"]
[TimeControl "180+1"]
[WhiteFideId "14101602"]
[BlackFideId "3229076"]
[WhiteElo "2516"]
[BlackElo "2349"]
[WhiteTeam "UKR"]
[BlackTeam "AUS"]
[WhiteClock "0:00:14"]
[BlackClock "0:00:01"]

1. Nf3 {[%clk 0:02:59]}  Nf6 {[%clk 0:02:59]} 2. g3 {[%clk 0:02:57]}  e6 {[%clk 0:03:00]} 3. Bg2 {[%clk 0:02:57]}  d5 {[%clk 0:03:01]} 4. c4 {[%clk 0:02:57]}  a6 {[%clk 0:02:58]} 5. b3 {[%clk 0:02:56]}  Be7 {[%clk 0:02:58]} 6. O-O {[%clk 0:02:54]}  O-O {[%clk 0:02:59]} 7. Bb2 {[%clk 0:02:54]}  b5 {[%clk 0:02:56]} 8. cxd5 {[%clk 0:02:52]}  exd5 {[%clk 0:02:54]} 9. d4 {[%clk 0:02:51]}  c6 {[%clk 0:02:50]} 10. Nbd2 {[%clk 0:02:43]}  Re8 {[%clk 0:02:46]} 11. Rc1 {[%clk 0:02:40]}  Bg4 {[%clk 0:02:34]} 12. Ne5 {[%clk 0:02:39]}  Bd7 {[%clk 0:02:33]} 13. Ndf3 {[%clk 0:02:36]}  Bd6 {[%clk 0:02:33]} 14. h3 {[%clk 0:02:27]}  a5 {[%clk 0:02:31]} 15. Qc2 {[%clk 0:02:19]}  a4 {[%clk 0:02:29]} 16. Ng5 {[%clk 0:02:15]}  Re7 {[%clk 0:02:20]} 17. e4 {[%clk 0:02:13]}  h6 {[%clk 0:02:16]} 18. Nxd7 {[%clk 0:01:58]}  Qxd7 {[%clk 0:02:06]} 19. e5 {[%clk 0:01:57]}  hxg5 {[%clk 0:02:05]} 20. exf6 {[%clk 0:01:47]}  gxf6 {[%clk 0:02:04]} 21. Qd1 {[%clk 0:01:16]}  Qf5 {[%clk 0:01:53]} 22. Bf3 {[%clk 0:01:13]}  Qxh3 {[%clk 0:01:39]} 23. Bg4 {[%clk 0:01:13]}  Qh7 {[%clk 0:01:33]} 24. Qf3 {[%clk 0:01:11]}  Kg7 {[%clk 0:01:30]} 25. Bf5 {[%clk 0:01:11]}  Qh8 {[%clk 0:01:04]} 26. Kg2 {[%clk 0:01:09]}  axb3 {[%clk 0:00:58]} 27. axb3 {[%clk 0:01:07]}  Ra2 {[%clk 0:00:57]} 28. Ba1 {[%clk 0:01:07]}  Ree2 {[%clk 0:00:49]} 29. Bd3 {[%clk 0:01:03]}  Red2 {[%clk 0:00:47]} 30. Bc3 {[%clk 0:01:01]}  Rxd3 {[%clk 0:00:40]} 31. Qxd3 {[%clk 0:01:02]}  Qh7 {[%clk 0:00:34]} 32. Qxh7+ {[%clk 0:00:52]}  Kxh7 {[%clk 0:00:35]} 33. Ra1 {[%clk 0:00:52]}  Rc2 {[%clk 0:00:23]} 34. Rfc1 {[%clk 0:00:51]}  Rxc1 {[%clk 0:00:20]} 35. Rxc1 {[%clk 0:00:52]}  Nd7 {[%clk 0:00:18]} 36. b4 {[%clk 0:00:47]}  Kg6 {[%clk 0:00:18]} 37. Ra1 {[%clk 0:00:46]}  Nb6 {[%clk 0:00:16]} 38. Ra6 {[%clk 0:00:45]}  Bc7 {[%clk 0:00:16]} 39. g4 {[%clk 0:00:42]}  f5 {[%clk 0:00:14]} 40. Ra7 {[%clk 0:00:40]}  Bd8 {[%clk 0:00:14]} 41. gxf5+ {[%clk 0:00:39]}  Kf6 {[%clk 0:00:14]} 42. Kf3 {[%clk 0:00:32]}  Nc4 {[%clk 0:00:13]} 43. Kg4 {[%clk 0:00:28]}  Nd6 {[%clk 0:00:11]} 44. Ra6 {[%clk 0:00:24]}  Ne4 {[%clk 0:00:05]} 45. Rxc6+ {[%clk 0:00:23]}  Kg7 {[%clk 0:00:03]} 46. f3 {[%clk 0:00:18]}  Nf2+ {[%clk 0:00:01]} 47. Kg3 {[%clk 0:00:17]}  Nd3 {[%clk 0:00:01]} 48. Kg4 {[%clk 0:00:14]}  Bf6 {[%clk 0:00:02]} 49. Bd2 {[%clk 0:00:13]}  Nf2+ {[%clk 0:00:02]} 50. Kg3 {[%clk 0:00:12]}  Nd3 {[%clk 0:00:03]} 51. Kg2 {[%clk 0:00:11]}  Nf4+ {[%clk 0:00:03]} 52. Bxf4 {[%clk 0:00:11]}  gxf4 {[%clk 0:00:04]} 53. Rc5 {[%clk 0:00:11]}  Bxd4 {[%clk 0:00:04]} 54. Rxd5 {[%clk 0:00:11]}  Bc3 {[%clk 0:00:03]} 55. Rxb5 {[%clk 0:00:11]}  Kf6 {[%clk 0:00:04]} 56. Kf2 {[%clk 0:00:12]}  Kg5 {[%clk 0:00:04]} 57. Ke2 {[%clk 0:00:12]}  Kh4 {[%clk 0:00:04]} 58. Kd3 {[%clk 0:00:12]}  Be1 {[%clk 0:00:03]} 59. Ke4 {[%clk 0:00:13]}  Kg3 {[%clk 0:00:04]} 60. Rb8 {[%clk 0:00:13]}  f6 {[%clk 0:00:04]} 61. b5 {[%clk 0:00:13]}  Bf2 {[%clk 0:00:04]} 62. Rg8+ {[%clk 0:00:13]}  Kh2 {[%clk 0:00:03]} 63. Rg6 {[%clk 0:00:14]}  Bc5 {[%clk 0:00:02]} 64. Rxf6 {[%clk 0:00:14]}  Kg3 {[%clk 0:00:01]} 65. Rc6 {[%clk 0:00:14]} 1-0

[Event "January 2 Late 2024"]
[Site "https://www.chess.com"]
[Date "2024.01.02"]
[Round "2"]
[White "Ramos Rivera, Jesse James"]
[Black "Davidson, Kevin"]
[Result "1-0"]
[Board "163"]
[TimeControl "180+1"]
[WhiteFideId "3103250"]
[BlackFideId "2056810"]
[WhiteElo "2346"]
[BlackElo "2513"]
[WhiteTeam "PUR"]
[BlackTeam "USA"]
[WhiteClock "0:00:18"]
[BlackClock "0:00:03"]

1. e4 {[%clk 0:02:52]}  c5 {[%clk 0:02:59]} 2. Nf3 {[%clk 0:02:52]}  d6 {[%clk 0:02:59]} 3. d4 {[%clk 0:02:51]}  cxd4 {[%clk 0:03:00]} 4. Nxd4 {[%clk 0:02:50]}  Nf6 {[%clk 0:03:00]} 5. Nc3 {[%clk 0:02:50]}  a6 {[%clk 0:03:00]} 6. Bg5 {[%clk 0:02:49]}  e6 {[%clk 0:03:00]} 7. Bc4 {[%clk 0:02:49]}  b5 {[%clk 0:02:55]} 8. Bb3 {[%clk 0:02:48]}  Be7 {[%clk 0:02:55]} 9. a3 {[%clk 0:02:46]}  O-O {[%clk 0:02:53]} 10. Qe2 {[%clk 0:02:43]}  Bb7 {[%clk 0:02:44]} 11. O-O-O {[%clk 0:02:41]}  Nbd7 {[%clk 0:02:44]} 12. f3 {[%clk 0:02:38]}  Qc7 {[%clk 0:02:29]} 13. Kb1 {[%clk 0:02:37]}  Nc5 {[%clk 0:02:23]} 14. h4 {[%clk 0:02:36]}  Nxb3 {[%clk 0:02:13]} 15. cxb3 {[%clk 0:02:35]}  Rac8 {[%clk 0:02:10]} 16. Rc1 {[%clk 0:02:31]}  Qb8 {[%clk 0:02:06]} 17. h5 {[%clk 0:02:29]}  Rfe8 {[%clk 0:02:03]} 18. g4 {[%clk 0:02:24]}  Rc5 {[%clk 0:01:45]} 19. Be3 {[%clk 0:02:22]}  Rec8 {[%clk 0:01:42]} 20. g5 {[%clk 0:02:20]}  Nd7 {[%clk 0:01:41]} 21. g6 {[%clk 0:02:17]}  Bf6 {[%clk 0:01:32]} 22. Qh2 {[%clk 0:01:58]}  d5 {[%clk 0:01:19]} 23. gxf7+ {[%clk 0:01:52]}  Kxf7 {[%clk 0:01:19]} 24. Qh3 {[%clk 0:01:51]}  Nf8 {[%clk 0:01:13]} 25. exd5 {[%clk 0:01:37]}  exd5 {[%clk 0:01:08]} 26. Nf5 {[%clk 0:00:57]}  Rxc3 {[%clk 0:00:41]} 27. bxc3 {[%clk 0:00:56]}  Bxc3 {[%clk 0:00:31]} 28. Qg4 {[%clk 0:00:53]}  Bf6 {[%clk 0:00:25]} 29. Bf4 {[%clk 0:00:45]}  Rxc1+ {[%clk 0:00:21]} 30. Rxc1 {[%clk 0:00:45]}  Qa7 {[%clk 0:00:17]} 31. Rc7+ {[%clk 0:00:43]}  Ke8 {[%clk 0:00:08]} 32. Nxg7+ {[%clk 0:00:36]}  Kd8 {[%clk 0:00:05]} 33. Ne6+ {[%clk 0:00:18]}  Nxe6 {[%clk 0:00:04]} 34. Qxe6 {[%clk 0:00:19]}  Qg1+ {[%clk 0:00:04]} 35. Rc1 {[%clk 0:00:20]}  Qd4 {[%clk 0:00:03]} 36. Bc7# {[%clk 0:00:18]} 1-0

[Event "January 2 Late 2024"]
[Site "https://www.chess.com"]
[Date "2024.01.02"]
[Round "2"]
[White "CRObliterator"]
[Black "Leyva Proenza, Richard"]
[Result "1-0"]
[Board "166"]
[TimeControl "180+1"]
[BlackFideId "3500985"]
[WhiteElo "2339"]
[BlackElo "2510"]
[BlackTeam "VEN"]
[WhiteClock "0:00:54"]
[BlackClock "0:00:00"]

1. d4 {[%clk 0:03:00]}  Nf6 {[%clk 0:02:55]} 2. Bf4 {[%clk 0:03:00]}  g6 {[%clk 0:02:55]} 3. e3 {[%clk 0:03:00]}  Bg7 {[%clk 0:02:56]} 4. h4 {[%clk 0:03:01]}  O-O {[%clk 0:02:57]} 5. h5 {[%clk 0:03:01]}  Nxh5 {[%clk 0:02:54]} 6. Rxh5 {[%clk 0:03:01]}  gxh5 {[%clk 0:02:54]} 7. Qxh5 {[%clk 0:03:02]}  Qe8 {[%clk 0:02:46]} 8. Nc3 {[%clk 0:02:38]}  c6 {[%clk 0:02:43]} 9. Bd3 {[%clk 0:02:36]}  f5 {[%clk 0:02:42]} 10. Qh2 {[%clk 0:02:32]}  d6 {[%clk 0:02:39]} 11. Nf3 {[%clk 0:02:31]}  Nd7 {[%clk 0:02:28]} 12. Ng5 {[%clk 0:02:22]}  Nf6 {[%clk 0:02:27]} 13. O-O-O {[%clk 0:02:11]}  Qg6 {[%clk 0:02:19]} 14. f3 {[%clk 0:02:02]}  b5 {[%clk 0:02:09]} 15. Rh1 {[%clk 0:02:01]}  h6 {[%clk 0:01:58]} 16. Nh3 {[%clk 0:01:56]}  b4 {[%clk 0:01:48]} 17. Ne2 {[%clk 0:01:50]}  Nd5 {[%clk 0:01:46]} 18. g4 {[%clk 0:01:36]}  b3 {[%clk 0:01:17]} 19. axb3 {[%clk 0:01:33]}  Nb4 {[%clk 0:01:16]} 20. gxf5 {[%clk 0:01:23]}  Nxd3+ {[%clk 0:01:16]} 21. cxd3 {[%clk 0:01:23]}  Qxf5 {[%clk 0:01:17]} 22. Kc2 {[%clk 0:01:10]}  Qxh3 {[%clk 0:01:15]} 23. Qxh3 {[%clk 0:01:09]}  Bxh3 {[%clk 0:01:16]} 24. Rxh3 {[%clk 0:01:10]}  a5 {[%clk 0:01:09]} 25. Rh5 {[%clk 0:00:53]}  a4 {[%clk 0:00:00]} 26. bxa4 {[%clk 0:00:54]} 1-0

[Event "January 2 Late 2024"]
[Site "https://www.chess.com"]
[Date "2024.01.02"]
[Round "2"]
[White "Gasparyan, David"]
[Black "Poddubnyi, Viktor"]
[Result "1-0"]
[Board "167"]
[TimeControl "180+1"]
[WhiteFideId "13311980"]
[BlackFideId "4141989"]
[WhiteElo "2509"]
[BlackElo "2339"]
[WhiteTeam "USA"]
[BlackTeam "RUS"]
[WhiteClock "0:00:37"]
[BlackClock "0:00:00"]

1. Nf3 {[%clk 0:03:00]}  g6 {[%clk 0:03:00]} 2. d4 {[%clk 0:02:59]}  Bg7 {[%clk 0:03:00]} 3. e4 {[%clk 0:03:00]}  d6 {[%clk 0:03:00]} 4. Nc3 {[%clk 0:02:58]}  Nf6 {[%clk 0:03:00]} 5. Bc4 {[%clk 0:02:54]}  c6 {[%clk 0:02:59]} 6. Qe2 {[%clk 0:02:54]}  d5 {[%clk 0:02:58]} 7. exd5 {[%clk 0:02:50]}  cxd5 {[%clk 0:02:58]} 8. Bb5+ {[%clk 0:02:49]}  Nc6 {[%clk 0:02:58]} 9. Ne5 {[%clk 0:02:49]}  Bd7 {[%clk 0:02:58]} 10. Bxc6 {[%clk 0:02:45]}  bxc6 {[%clk 0:02:55]} 11. O-O {[%clk 0:02:43]}  O-O {[%clk 0:02:54]} 12. Bf4 {[%clk 0:02:28]}  Rc8 {[%clk 0:02:28]} 13. Na4 {[%clk 0:02:27]}  Bf5 {[%clk 0:02:19]} 14. Nc5 {[%clk 0:02:24]}  Nd7 {[%clk 0:02:17]} 15. Nexd7 {[%clk 0:02:18]}  Bxd7 {[%clk 0:02:16]} 16. c3 {[%clk 0:02:16]}  h6 {[%clk 0:02:06]} 17. Qa6 {[%clk 0:02:16]}  Ra8 {[%clk 0:01:43]} 18. Rfe1 {[%clk 0:02:13]}  e6 {[%clk 0:01:39]} 19. Qb7 {[%clk 0:02:04]}  Be8 {[%clk 0:01:26]} 20. Na6 {[%clk 0:01:51]}  Rc8 {[%clk 0:01:14]} 21. Bd6 {[%clk 0:01:33]}  Bd7 {[%clk 0:01:10]} 22. Bxf8 {[%clk 0:01:31]}  Bxf8 {[%clk 0:01:11]} 23. a4 {[%clk 0:01:24]}  Bd6 {[%clk 0:01:08]} 24. a5 {[%clk 0:01:19]}  Ra8 {[%clk 0:00:17]} 25. b4 {[%clk 0:01:03]}  Be8 {[%clk 0:00:15]} 26. Nc5 {[%clk 0:00:57]}  Rb8 {[%clk 0:00:11]} 27. Qa6 {[%clk 0:00:57]}  Qh4 {[%clk 0:00:10]} 28. g3 {[%clk 0:00:57]}  Qh3 {[%clk 0:00:10]} 29. Qe2 {[%clk 0:00:54]}  h5 {[%clk 0:00:09]} 30. Nd3 {[%clk 0:00:48]}  h4 {[%clk 0:00:08]} 31. Ne5 {[%clk 0:00:45]}  hxg3 {[%clk 0:00:07]} 32. fxg3 {[%clk 0:00:42]}  Kg7 {[%clk 0:00:04]} 33. Rf1 {[%clk 0:00:37]}  Bxe5 {[%clk 0:00:00]} 34. Qxe5+ {[%clk 0:00:37]} 1-0

[Event "January 2 Late 2024"]
[Site "https://www.chess.com"]
[Date "2024.01.02"]
[Round "2"]
[White "Kostiukov, Alexandr"]
[Black "Sonnenschein, Philipp"]
[Result "1-0"]
[Board "168"]
[TimeControl "180+1"]
[WhiteFideId "14108100"]
[BlackFideId "16250877"]
[WhiteElo "2331"]
[BlackElo "2509"]
[WhiteTeam "UKR"]
[BlackTeam "GER"]
[WhiteClock "0:00:36"]
[BlackClock "0:00:38"]

1. g3 {[%clk 0:02:54]}  d5 {[%clk 0:02:59]} 2. Bg2 {[%clk 0:02:54]}  e5 {[%clk 0:02:59]} 3. c4 {[%clk 0:02:54]}  c6 {[%clk 0:02:58]} 4. cxd5 {[%clk 0:02:55]}  cxd5 {[%clk 0:02:58]} 5. d4 {[%clk 0:02:55]}  e4 {[%clk 0:02:58]} 6. Nh3 {[%clk 0:02:55]}  Nc6 {[%clk 0:02:57]} 7. O-O {[%clk 0:02:55]}  Be7 {[%clk 0:02:51]} 8. Nc3 {[%clk 0:02:54]}  Nf6 {[%clk 0:02:50]} 9. Bg5 {[%clk 0:02:54]}  O-O {[%clk 0:02:49]} 10. Nf4 {[%clk 0:02:54]}  Be6 {[%clk 0:02:49]} 11. e3 {[%clk 0:02:53]}  Rc8 {[%clk 0:02:44]} 12. f3 {[%clk 0:02:41]}  exf3 {[%clk 0:02:36]} 13. Qxf3 {[%clk 0:02:42]}  Bg4 {[%clk 0:02:24]} 14. Qf2 {[%clk 0:02:38]}  Re8 {[%clk 0:02:06]} 15. Bxf6 {[%clk 0:02:32]}  Bxf6 {[%clk 0:02:06]} 16. Nfxd5 {[%clk 0:02:27]}  Na5 {[%clk 0:01:48]} 17. h3 {[%clk 0:02:12]}  Be6 {[%clk 0:01:44]} 18. Nxf6+ {[%clk 0:02:07]}  gxf6 {[%clk 0:01:45]} 19. d5 {[%clk 0:01:51]}  Bd7 {[%clk 0:01:41]} 20. g4 {[%clk 0:01:40]}  Nc4 {[%clk 0:01:38]} 21. Ne4 {[%clk 0:01:33]}  Kh8 {[%clk 0:01:15]} 22. Nxf6 {[%clk 0:01:25]}  Nxe3 {[%clk 0:01:07]} 23. Qh4 {[%clk 0:00:57]}  Kg7 {[%clk 0:00:59]} 24. Qxh7+ {[%clk 0:00:53]}  Kf8 {[%clk 0:00:59]} 25. d6 {[%clk 0:00:37]}  Qxf6 {[%clk 0:00:38]} 26. Rxf6 {[%clk 0:00:36]} 1-0

[Event "January 2 Late 2024"]
[Site "https://www.chess.com"]
[Date "2024.01.02"]
[Round "2"]
[White "Korol, Dimitry"]
[Black "Gulamali, Kazim"]
[Result "1-0"]
[Board "169"]
[TimeControl "180+1"]
[WhiteFideId "14108003"]
[BlackFideId "2024764"]
[WhiteElo "2321"]
[BlackElo "2509"]
[WhiteTeam "UKR"]
[BlackTeam "USA"]
[WhiteClock "0:00:41"]
[BlackClock "0:00:19"]

1. d4 {[%clk 0:03:00]}  Nf6 {[%clk 0:02:27]} 2. c4 {[%clk 0:03:01]}  e6 {[%clk 0:02:28]} 3. Nc3 {[%clk 0:03:01]}  d5 {[%clk 0:02:29]} 4. Bg5 {[%clk 0:03:01]}  Be7 {[%clk 0:02:24]} 5. cxd5 {[%clk 0:03:01]}  exd5 {[%clk 0:02:23]} 6. e3 {[%clk 0:03:01]}  c6 {[%clk 0:02:21]} 7. Bd3 {[%clk 0:03:01]}  Nbd7 {[%clk 0:02:20]} 8. Qc2 {[%clk 0:03:01]}  h6 {[%clk 0:02:11]} 9. Bh4 {[%clk 0:03:01]}  O-O {[%clk 0:02:11]} 10. Nge2 {[%clk 0:03:01]}  b6 {[%clk 0:02:05]} 11. f3 {[%clk 0:03:01]}  Bb7 {[%clk 0:02:05]} 12. O-O {[%clk 0:03:01]}  c5 {[%clk 0:02:05]} 13. Rad1 {[%clk 0:03:01]}  Rc8 {[%clk 0:02:04]} 14. Bf2 {[%clk 0:02:56]}  a6 {[%clk 0:02:03]} 15. h3 {[%clk 0:02:52]}  b5 {[%clk 0:02:04]} 16. Qd2 {[%clk 0:02:28]}  b4 {[%clk 0:02:00]} 17. Na4 {[%clk 0:02:28]}  c4 {[%clk 0:02:00]} 18. Bb1 {[%clk 0:02:19]}  Bc6 {[%clk 0:02:00]} 19. b3 {[%clk 0:02:20]}  Bxa4 {[%clk 0:02:00]} 20. bxa4 {[%clk 0:02:20]}  Qa5 {[%clk 0:01:52]} 21. e4 {[%clk 0:02:18]}  Qxa4 {[%clk 0:01:23]} 22. e5 {[%clk 0:02:17]}  Ne8 {[%clk 0:01:23]} 23. Rc1 {[%clk 0:02:11]}  Nc7 {[%clk 0:01:13]} 24. f4 {[%clk 0:02:08]}  Nb5 {[%clk 0:01:10]} 25. f5 {[%clk 0:02:03]}  Bg5 {[%clk 0:01:10]} 26. Be3 {[%clk 0:02:03]}  f6 {[%clk 0:01:08]} 27. e6 {[%clk 0:01:22]}  Nb8 {[%clk 0:01:02]} 28. Bxg5 {[%clk 0:01:12]}  hxg5 {[%clk 0:01:03]} 29. h4 {[%clk 0:01:12]}  gxh4 {[%clk 0:00:34]} 30. Qf4 {[%clk 0:01:11]}  Qa3 {[%clk 0:00:26]} 31. Rf3 {[%clk 0:01:05]}  Qb2 {[%clk 0:00:25]} 32. Re1 {[%clk 0:00:50]}  g5 {[%clk 0:00:23]} 33. fxg6 {[%clk 0:00:43]}  Kg7 {[%clk 0:00:23]} 34. Qxh4 {[%clk 0:00:42]}  Nc6 {[%clk 0:00:19]} 35. Qh7# {[%clk 0:00:41]} 1-0